bitfinex/quotes_ETHUSD_20250604
["timestamp","ask_amount","ask_price","bid_price","bid_amount"]
[1749031095926,1.771591,2641.0,2640.6,2.77178987]
[1749031096787,1.771591,2641.0,2640.5,8.0]
[1749031097206,1.771591,2641.0,2640.7,8.0]
[1749031099337,1.771591,2641.0,2640.8,3.445794]
[1749031099503,1.4773,2641.0,2640.7,8.0]
[1749031100338,0.21,2640.9,2640.7,8.0]
[1749031101340,0.21,2640.9,2640.4,8.0]
[1749031101638,0.20404307,2640.9,2640.7,8.0]
[1749031103162,0.20404307,2640.9,2640.6,2.77178987]
[1749031103309,0.47017738,2640.9,2640.6,2.77178987]
[1749031106051,1.5264,2640.8,2640.4,10.77178987]
[1749031106251,1.5264,2640.8,2640.5,8.0]
[1749031107340,0.21,2640.7,2640.5,8.0]
[1749031112443,0.21,2640.7,2640.6,2.77178987]
[1749031114367,0.98,2640.9,2640.7,30.0]
[1749031114571,0.209,2640.8,2640.7,2.77178987]
[1749031114772,0.209,2640.8,2640.7,7.56593887]
[1749031115338,0.209,2640.8,2640.7,4.87862987]
[1749031115771,0.209,2640.8,2640.7,2.77178987]
[1749031115939,0.209,2640.8,2640.5,2.77178987]
[1749031116975,0.209,2640.8,2640.7,2.77178987]
[1749031120479,0.209,2640.8,2640.5,7.349374]
[1749031120777,0.209,2640.8,2640.7,2.77178987]
[1749031122586,1.7211,2640.8,2640.3,1.19887058]
[1749031122770,1.7211,2640.8,2640.5,2.77178987]
[1749031123669,1.71520425,2640.8,2640.5,2.77178987]
[1749031124389,1.71520425,2640.8,2640.7,2.77178987]
[1749031127150,1.5121,2640.8,2640.3,1.19887058]
[1749031127357,1.7211,2640.8,2640.7,2.77178987]
[1749031129582,1.7211,2640.8,2640.6,2.77178987]
[1749031130294,1.7211,2640.8,2640.7,2.77178987]
[1749031132168,1.7211,2640.8,2639.7,8.0]
[1749031132371,1.7211,2640.8,2640.6,2.77178987]
[1749031135869,0.209,2640.7,2640.6,2.77178987]
[1749031136471,1.5055,2640.6,2639.3,13.107969]
[1749031136709,1.4788,2640.4,2639.1,0.02]
[1749031136913,1.4788,2640.4,2639.8,2.77178987]
[1749031138371,1.4788,2640.4,2639.6,2.77178987]
[1749031142186,0.209,2640.3,2639.8,2.77178987]
[1749031142396,0.209,2640.3,2639.7,2.77178987]
[1749031143984,0.209,2640.3,2639.2,10.0]
[1749031144189,0.209,2640.3,2639.7,2.77178987]
[1749031144624,1.5889,2640.2,2639.7,2.77178987]
[1749031145834,1.5830639,2640.2,2639.7,2.77178987]
[1749031147438,0.98,2640.1,2639.7,2.77178987]
[1749031147599,0.209,2640.0,2639.7,2.77178987]
[1749031149849,0.209,2640.0,2639.1,8.02]
[1749031149850,0.98,2640.1,2639.9,2.77178987]
[1749031150015,0.209,2640.0,2639.9,2.77178987]
[1749031150802,0.98,2640.1,2639.9,2.77178987]
[1749031151127,0.209,2640.0,2639.9,2.77178987]
[1749031154346,0.209,2640.0,2639.9,25.07741887]
[1749031154576,0.209,2640.0,2639.9,28.34083587]
[1749031155069,0.209,2640.0,2639.9,23.92225787]
[1749031156069,0.98,2640.1,2639.9,23.92225787]
[1749031156260,0.98,2640.1,2640.0,9.493468]
[1749031156632,1.189,2640.1,2640.0,9.493468]
[1749031158181,1.189,2640.1,2640.0,13.609976]
[1749031159678,0.98,2640.1,2640.0,13.609976]
[1749031159878,1.189,2640.1,2640.0,13.609976]
[1749031161380,0.98,2640.1,2640.0,13.609976]
[1749031161553,1.189,2640.1,2640.0,13.609976]
[1749031168586,1.18322052,2640.1,2640.0,13.609976]
[1749031170922,0.209,2640.1,2640.0,13.609976]
[1749031174972,0.209,2640.1,2640.0,13.208707]
[1749031178881,0.98,2640.9,2640.2,8.0]
[1749031178882,1.5654,2640.6,2640.2,8.0]
[1749031179088,1.5654,2640.6,2640.5,2.77178987]
[1749031179275,1.7744,2640.6,2640.5,2.77178987]
[1749031183244,1.7744,2640.6,2640.5,7.82798887]
[1749031186792,0.209,2640.6,2640.5,7.82798887]
[1749031187411,0.209,2640.6,2640.5,10.77178987]
[1749031187610,0.209,2640.6,2640.5,35.39140587]
[1749031189812,0.209,2640.6,2640.5,33.57597587]
[1749031191622,0.20327899,2640.6,2640.5,33.57597587]
[1749031191828,0.20327899,2640.6,2640.5,25.57597587]
[1749031192794,0.20327899,2640.6,2640.5,18.23459081]
[1749031193683,0.20327899,2640.6,2640.5,26.23459081]
[1749031197999,0.98,2640.9,2640.8,6.281167]
[1749031198327,1.189,2640.9,2640.8,9.05295687]
[1749031199328,0.98,2640.9,2640.8,18.31111898]
[1749031199502,1.189,2640.9,2640.8,18.31111898]
[1749031200280,1.189,2640.9,2640.8,8.0]
[1749031200585,1.189,2640.9,2640.8,10.01497599]
[1749031200785,1.45935,2640.9,2640.8,10.01497599]
[1749031201194,1.45935,2640.9,2640.8,8.0]
[1749031201419,0.98,2640.9,2640.8,8.0]
[1749031201593,1.189,2640.9,2640.8,10.77168699]
[1749031202297,0.98,2640.9,2640.8,10.77168699]
[1749031202498,1.189,2640.9,2640.8,10.77168699]
[1749031203406,2.7761,2640.9,2640.8,8.0]
[1749031203720,2.7761,2640.9,2640.8,10.77168699]
[1749031204048,1.189,2640.9,2640.8,10.77168699]
[1749031204333,2.7761,2640.9,2640.8,10.77168699]
[1749031204678,2.7761,2640.9,2640.3,1.20030982]
[1749031204679,2.7761,2640.9,2640.6,2.77168699]
[1749031205098,2.7761,2640.9,2640.7,8.0]
[1749031206918,2.7761,2640.9,2640.8,2.77168699]
[1749031207487,1.189,2640.9,2640.8,10.06041599]
[1749031207850,1.189,2640.9,2640.8,9.64018699]
[1749031208319,1.189,2640.9,2640.8,8.28318599]
[1749031208551,0.209,2640.9,2640.8,8.28318599]
[1749031209548,0.209,2640.9,2640.8,2.77168699]
[1749031209983,1.499,2641.1,2640.8,2.77168699]
[1749031210180,0.4569,2641.0,2640.8,2.77168699]
[1749031210484,0.4569,2641.0,2640.7,2.77168699]
[1749031213245,0.2479,2641.0,2640.7,2.77168699]
[1749031213492,0.209,2640.9,2640.7,2.77168699]
[1749031213780,0.20333732,2640.9,2640.7,2.77168699]
[1749031213980,0.39836105,2640.9,2640.7,2.77168699]
[1749031214542,0.39836105,2640.9,2640.4,8.0]
[1749031214748,1.4974,2640.8,2640.4,8.0]
[1749031222199,1.4974,2640.8,2640.5,2.77168699]
[1749031222423,0.209,2640.7,2640.6,2.77168699]
[1749031222971,0.209,2640.7,2640.6,34.31264999]
[1749031224520,0.209,2640.7,2640.6,33.76193299]
[1749031224684,0.209,2640.7,2640.6,31.28399499]
[1749031225625,2.5949,2641.2,2640.7,8.0]
[1749031225830,0.209,2641.1,2640.8,8.0]
[1749031225974,0.209,2641.1,2640.9,9.89115]
[1749031226367,0.209,2641.1,2640.9,8.16615]
[1749031226685,0.209,2641.1,2640.9,6.74947]
[1749031226882,0.209,2641.1,2641.0,10.0]
[1749031227107,0.48939,2641.1,2640.9,2.77168699]
[1749031228327,0.209,2641.1,2640.9,2.77168699]
[1749031228625,0.209,2641.1,2641.0,10.0]
[1749031235338,0.98,2641.2,2641.1,38.0]
[1749031235539,0.98,2641.2,2641.1,38.89630899]
[1749031235540,1.189,2641.2,2641.1,38.89630899]
[1749031236826,1.18339505,2641.2,2641.1,38.89630899]
[1749031239244,0.56910478,2641.2,2641.1,2.77168699]
[1749031239647,0.56910478,2641.2,2641.1,8.0]
[1749031239864,0.56910478,2641.2,2641.1,17.18129699]
[1749031240154,0.56910478,2641.2,2641.1,10.77168699]
[1749031240350,0.78364526,2641.2,2641.1,8.0]
[1749031241124,0.78364526,2641.2,2640.9,2.77168699]
[1749031241331,0.78364526,2641.2,2641.0,8.0]
[1749031241518,0.56910478,2641.2,2641.0,8.0]
[1749031242426,0.36010478,2641.2,2641.1,2.77168699]
[1749031242635,0.56910478,2641.2,2641.1,2.77168699]
[1749031245544,0.56910478,2641.2,2641.1,20.27548499]
[1749031246171,0.56910478,2641.2,2641.1,28.27548499]
[1749031249733,0.209,2641.2,2641.1,28.27548499]
[1749031249937,0.209,2641.2,2641.1,15.41595386]
[1749031250138,0.209,2641.2,2641.1,21.04765799]
[1749031251582,1.5925,2641.8,2641.2,8.0]
[1749031251739,0.209,2641.7,2641.1,2.77168699]
[1749031252070,0.209,2641.7,2641.2,16.840514]
[1749031252284,0.209,2641.7,2641.2,12.98136]
[1749031252585,0.209,2641.7,2641.5,2.77168699]
[1749031253511,0.209,2641.7,2641.3,2.77168699]
[1749031254551,0.209,2641.7,2641.5,2.77168699]
[1749031258873,1.5608,2642.0,2641.6,30.0]
[1749031259072,0.209,2641.8,2641.7,24.33361899]
[1749031259305,0.209,2641.8,2641.7,13.29561899]
[1749031259586,0.209,2641.8,2641.7,5.97253699]
[1749031260170,0.20345197,2641.8,2641.7,5.97253699]
[1749031260600,1.5608,2642.2,2641.7,5.97253699]
[1749031260774,1.5608,2642.2,2641.8,14.429246]
[1749031260978,0.229,2641.9,2641.8,14.429246]
[1749031261508,0.02,2641.9,2641.8,22.429246]
[1749031261716,0.229,2641.9,2641.8,22.429246]
[1749031263584,0.98,2642.4,2642.1,8.0]
[1749031263796,0.209,2642.3,2642.2,24.58169799]
[1749031264314,0.209,2642.3,2642.2,7.28281999]
[1749031266418,0.209,2642.3,2641.4,0.35437488]
[1749031266419,0.209,2642.3,2642.0,2.77168699]
[1749031268503,0.209,2642.3,2641.9,10.0]
[1749031268713,0.47642,2642.3,2641.7,2.77168699]
[1749031268911,1.5449,2642.2,2641.9,2.77168699]
[1749031269296,1.5449,2642.2,2641.2,8.55]
[1749031269498,1.5449,2642.2,2641.7,2.77168699]
[1749031269872,1.845032,2642.2,2641.8,10.0]
[1749031270739,1.845032,2642.2,2641.9,2.77168699]
[1749031276430,1.845032,2642.2,2642.1,2.77168699]
[1749031276632,2.053032,2642.2,2642.1,11.38707099]
[1749031276837,1.5449,2642.2,2642.1,11.38707099]
[1749031277129,1.5449,2642.2,2642.1,30.76356599]
[1749031277130,0.208,2642.2,2642.1,30.76356599]
[1749031277433,0.208,2642.2,2642.1,28.28714999]
[1749031277939,0.208,2642.2,2642.1,25.76094599]
[1749031279225,0.98,2642.4,2642.1,10.77168699]
[1749031279430,0.208,2642.2,2642.1,23.788325]
[1749031279613,0.208,2642.2,2642.1,26.56001199]
[1749031280036,0.208,2642.2,2642.1,26.08230399]
[1749031280344,0.208,2642.2,2642.1,24.92478499]
[1749031280513,0.208,2642.2,2642.1,20.67914299]
[1749031280719,0.208,2642.2,2642.1,8.0]
[1749031281737,0.98,2642.4,2642.1,8.0]
[1749031281938,0.98,2642.4,2642.3,12.73095199]
[1749031282138,1.188,2642.4,2642.3,12.73095199]
[1749031282812,1.188,2642.4,2642.3,9.18607599]
[1749031283014,1.18250894,2642.4,2642.3,9.18607599]
[1749031283213,1.18250894,2642.4,2642.1,8.0]
[1749031283419,1.18250894,2642.4,2642.1,10.77168699]
[1749031283609,1.44962983,2642.4,2642.1,10.77168699]
[1749031285907,1.24162983,2642.4,2642.3,2.77168699]
[1749031286238,1.44962983,2642.4,2642.3,2.77168699]
[1749031287549,1.44962983,2642.4,2642.1,10.77168699]
[1749031287728,1.4812,2642.3,2641.8,2.77168699]
[1749031289211,1.4812,2642.3,2641.4,5.586282]
[1749031289415,1.4812,2642.3,2641.2,1.19496683]
[1749031289416,1.4812,2642.3,2641.2,2.77168699]
[1749031289947,1.4812,2642.3,2641.4,2.77168699]
[1749031290946,1.4812,2642.3,2641.2,2.77168699]
[1749031291110,1.4501,2642.1,2641.2,2.77168699]
[1749031291310,1.4501,2642.1,2641.4,2.77168699]
[1749031294849,0.208,2642.0,2641.6,2.77168699]
[1749031295957,1.593,2641.9,2641.6,2.77168699]
[1749031296711,1.593,2641.9,2641.4,2.77168699]
[1749031297143,1.593,2641.9,2640.8,1.19496683]
[1749031297344,1.593,2641.9,2641.4,2.77168699]
[1749031299661,1.593,2641.9,2641.6,2.77168699]
[1749031302858,1.593,2641.9,2641.4,2.77168699]
[1749031304133,0.208,2641.8,2641.4,2.77168699]
[1749031304329,1.5649,2641.7,2641.4,2.77168699]
[1749031308873,0.208,2641.6,2641.4,2.77168699]
[1749031310079,1.5649,2641.7,2641.4,2.77168699]
[1749031310288,1.4824,2642.0,2641.6,2.77168699]
[1749031310603,0.979,2642.1,2641.9,2.77168699]
[1749031310798,0.208,2642.0,2641.9,2.77168699]
[1749031311098,0.208,2642.0,2641.9,14.00233199]
[1749031311893,0.208,2642.0,2641.9,13.54587199]
[1749031312075,0.208,2642.0,2641.9,2.77168699]
[1749031312268,0.208,2642.0,2641.9,7.95011599]
[1749031313264,0.208,2642.0,2641.9,2.77168699]
[1749031313984,0.208,2642.0,2641.8,8.0]
[1749031314183,0.208,2642.0,2641.8,10.0]
[1749031314496,0.208,2642.0,2641.6,2.77168699]
[1749031314703,0.4858,2642.0,2641.4,10.77168699]
[1749031315476,0.4858,2642.0,2641.6,2.77168699]
[1749031318469,0.4858,2642.0,2641.8,2.77168699]
[1749031319389,0.2778,2642.0,2641.8,2.77168699]
[1749031319604,0.208,2641.9,2641.8,2.77168699]
[1749031319996,0.208,2641.9,2641.7,2.77168699]
[1749031320392,0.20256244,2641.9,2641.7,2.77168699]
[1749031323187,0.40969868,2641.9,2641.5,2.77168699]
[1749031323393,1.5422,2641.8,2641.5,2.77168699]
[1749031324334,1.5422,2641.8,2641.4,2.77168699]
[1749031324629,1.5422,2641.8,2641.2,2.77168699]
[1749031324928,1.5422,2641.8,2641.3,8.0]
[1749031325134,0.19518987,2641.7,2641.3,8.0]
[1749031326117,1.4964,2641.6,2640.9,1.19496683]
[1749031326324,1.4964,2641.6,2641.1,2.77168699]
[1749031326526,1.4964,2641.6,2641.3,2.77168699]
[1749031326696,0.208,2641.5,2641.3,2.77168699]
[1749031330152,0.208,2641.5,2641.2,2.77168699]
[1749031331253,0.208,2641.5,2641.4,2.77168699]
[1749031331457,0.208,2641.5,2641.4,32.77168699]
[1749031331626,0.208,2641.5,2641.4,20.64344799]
[1749031333716,0.208,2641.5,2641.4,29.19344799]
[1749031333931,0.208,2641.5,2641.4,30.39152609]
[1749031334235,0.01886576,2641.5,2641.4,30.39152609]
[1749031335859,1.615,2642.4,2641.6,8.0]
[1749031336186,1.8744,2642.4,2642.1,2.77168699]
[1749031336485,0.208,2642.3,2642.1,2.77168699]
[1749031337746,0.208,2642.3,2641.9,2.77168699]
[1749031337946,0.208,2642.3,2641.7,5.951468]
[1749031338193,1.5382,2642.2,2641.9,10.0]
[1749031338371,1.5382,2642.2,2641.7,2.77168699]
[1749031339209,1.5382,2642.2,2641.5,2.77168699]
[1749031339345,1.5382,2642.2,2641.4,8.0]
[1749031339546,1.5382,2642.2,2641.6,8.0]
[1749031340146,1.5382,2642.2,2641.7,2.77168699]
[1749031340347,1.73876,2642.2,2641.7,2.77168699]
[1749031340586,1.73876,2642.2,2641.8,10.0]
[1749031341691,1.73876,2642.2,2641.5,8.0]
[1749031342390,1.73876,2642.2,2641.5,3.328131]
[1749031342590,1.5128,2642.0,2641.4,1.34438683]
[1749031342743,1.5074189,2642.0,2641.4,1.34438683]
[1749031342948,1.5074189,2642.0,2641.3,2.77168699]
[1749031343869,1.5074189,2642.0,2641.5,10.0]
[1749031344071,1.5074189,2642.0,2641.5,3.553783]
[1749031344271,1.5074189,2642.0,2641.4,10.0]
[1749031344515,1.5074189,2642.0,2641.3,2.77168699]
[1749031344812,1.5074189,2642.0,2641.5,10.0]
[1749031345020,1.5074189,2642.0,2641.5,3.553783]
[1749031345218,1.5074189,2642.0,2641.4,3.298726]
[1749031345716,1.5074189,2642.0,2641.3,2.77168699]
[1749031345916,1.5074189,2642.0,2640.9,1.1980781]
[1749031346211,1.5074189,2642.0,2641.0,2.77168699]
[1749031347719,1.5074189,2642.0,2640.8,2.77168699]
[1749031347720,4.27910589,2642.0,2640.8,2.77168699]
[1749031347878,0.194676,2642.1,2640.8,2.77168699]
[1749031347879,1.4922,2641.7,2640.8,2.77168699]
[1749031348284,1.4922,2641.7,2640.6,11.1980781]
[1749031348285,1.4922,2641.7,2640.7,3.788975]
[1749031349313,1.4922,2641.7,2640.8,2.77168699]
[1749031350522,1.4922,2641.7,2640.6,2.77168699]
[1749031353182,1.4922,2641.7,2640.7,8.0]
[1749031353381,0.4263887,2641.6,2640.7,8.0]
[1749031353630,1.6102,2641.5,2640.7,8.0]
[1749031355311,1.625,2641.4,2640.7,8.0]
[1749031355718,1.625,2641.4,2640.8,2.77168699]
[1749031355919,1.625,2641.2,2640.8,2.77168699]
[1749031356386,1.625,2641.2,2641.0,2.77168699]
[1749031356716,1.625,2641.2,2640.8,2.77168699]
[1749031359109,1.625,2641.2,2641.0,2.77168699]
[1749031359402,4.67,2641.5,2641.1,4.292583]
[1749031359403,1.5183,2641.4,2641.1,4.292583]
[1749031359738,0.208,2641.3,2641.2,2.77168699]
[1749031360436,0.208,2641.3,2640.8,8.0]
[1749031360643,0.208,2641.3,2640.8,2.77168699]
[1749031361028,1.5446,2641.2,2640.7,8.0]
[1749031361737,1.5446,2641.2,2640.8,2.77168699]
[1749031362441,1.5446,2641.2,2640.2,30.0]
[1749031362630,1.5446,2641.2,2640.6,2.77168699]
[1749031363505,1.5446,2641.2,2639.9,0.55852689]
[1749031363705,1.5446,2641.2,2639.5,39.567673]
[1749031363706,1.6083,2641.0,2639.5,39.567673]
[1749031363925,1.6083,2641.0,2639.2,0.77109155]
[1749031363926,1.6083,2641.0,2640.0,5.824738]
[1749031364134,1.5337,2640.8,2640.2,10.0]
[1749031364334,1.5337,2640.7,2639.9,2.77168699]
[1749031364642,1.5337,2640.7,2639.8,8.0]
[1749031364846,1.5337,2640.7,2640.0,8.0]
[1749031365417,1.5337,2640.7,2639.9,2.77168699]
[1749031365637,1.52837314,2640.7,2639.9,2.77168699]
[1749031366021,1.52837314,2640.7,2639.7,10.77168699]
[1749031366543,2.77168699,2640.9,2639.7,10.77168699]
[1749031366544,0.55,2640.8,2639.7,2.77168699]
[1749031366709,0.3321687,2640.7,2639.7,2.77168699]
[1749031367421,0.55,2640.6,2639.6,8.0]
[1749031367632,0.55,2640.6,2639.1,2.79168699]
[1749031367633,2.77168699,2640.2,2639.1,2.79168699]
[1749031368068,4.67,2640.6,2639.1,0.02]
[1749031368069,2.77168699,2640.0,2639.1,0.02]
[1749031368210,0.2771687,2639.9,2639.1,0.02]
[1749031368412,8.649,2640.6,2639.1,0.02]
[1749031368413,0.208,2639.8,2639.2,2.77168699]
[1749031368659,1.5853,2639.7,2639.2,2.77168699]
[1749031369452,1.5853,2639.7,2639.1,0.02]
[1749031371258,1.5853,2639.7,2638.8,5.24550157]
[1749031371468,1.5853,2639.7,2639.0,10.0]
[1749031371653,1.5853,2639.7,2639.0,8.877195]
[1749031371833,1.5853,2639.7,2638.8,5.24550157]
[1749031372457,1.86263,2639.7,2638.8,5.24550157]
[1749031373023,4.94733,2639.7,2638.8,5.24550157]
[1749031373218,1.5795,2639.6,2638.8,5.24550157]
[1749031374640,1.5795,2639.6,2639.1,5.2468385]
[1749031375041,1.5795,2639.6,2638.5,8.0]
[1749031375264,1.5795,2639.6,2639.3,5.2468385]
[1749031375432,2.252983,2639.6,2639.3,5.2468385]
[1749031378468,0.208,2639.5,2639.3,5.2468385]
[1749031379872,1.5795,2639.6,2639.4,18.31041]
[1749031380040,0.208,2639.5,2639.4,26.31041]
[1749031380241,0.208,2639.5,2639.4,31.5572485]
[1749031380858,0.208,2639.5,2639.4,16.3029725]
[1749031381464,0.208,2639.5,2639.4,13.2468385]
[1749031382774,0.208,2639.5,2639.4,31.7814055]
[1749031383343,0.208,2639.5,2639.4,23.7814055]
[1749031383744,0.208,2639.5,2639.4,18.3516835]
[1749031383984,0.01438847,2639.5,2639.4,18.3516835]
[1749031384181,0.01438847,2639.5,2639.4,9.1483635]
[1749031384379,0.01438847,2639.5,2639.4,9.9170265]
[1749031384774,0.01438847,2639.5,2639.4,5.2468385]
[1749031385477,0.01438847,2639.5,2639.4,10.5343905]
[1749031385674,2.6047,2639.9,2639.5,14.776129]
[1749031385876,0.208,2639.8,2639.2,30.280145]
[1749031386095,0.208,2639.8,2639.2,20.280145]
[1749031386458,0.208,2639.8,2639.2,18.230797]
[1749031386652,0.208,2639.8,2639.2,10.0]
[1749031386958,1.5595,2639.7,2639.5,5.2468385]
[1749031387712,1.5595,2639.7,2639.2,5.2468385]
[1749031388228,1.5595,2639.7,2639.5,5.2468385]
[1749031388876,0.208,2639.6,2639.5,5.2468385]
[1749031389203,0.208,2639.6,2639.5,20.81328878]
[1749031389496,0.208,2639.6,2639.5,27.02534078]
[1749031389691,0.208,2639.6,2639.5,22.63036478]
[1749031389896,0.208,2639.6,2639.5,22.31236478]
[1749031391101,0.208,2639.6,2639.5,17.70088578]
[1749031391425,0.208,2639.6,2639.5,18.02202006]
[1749031391631,0.208,2639.6,2639.5,17.70183606]
[1749031391836,1.7245,2639.6,2639.5,13.24356106]
[1749031391973,1.7245,2639.6,2639.5,5.24356106]
[1749031394312,1.7245,2639.6,2639.2,5.24356106]
[1749031398386,1.7245,2639.6,2639.3,5.24356106]
[1749031400327,2.36395,2639.6,2639.3,5.24356106]
[1749031401790,0.208,2639.5,2639.3,5.24356106]
[1749031405506,1.5697,2639.4,2639.1,8.0]
[1749031406841,1.5697,2639.4,2639.3,5.24356106]
[1749031407740,0.208,2639.5,2639.3,5.24356106]
[1749031408515,1.4646,2639.4,2639.3,5.24356106]
[1749031409049,0.55,2639.3,2638.4,14.47314821]
[1749031409341,1.4849,2639.1,2638.4,11.04114821]
[1749031411213,1.4849,2639.1,2638.7,5.24356106]
[1749031413848,1.4849,2639.1,2639.0,5.24356106]
[1749031414028,1.6929,2639.1,2639.0,5.24356106]
[1749031414233,1.6929,2639.1,2638.7,5.24356106]
[1749031414431,1.6929,2639.1,2638.4,5.79758715]
[1749031414608,1.6929,2639.1,2638.6,5.24356106]
[1749031414950,1.6929,2639.1,2638.9,5.24356106]
[1749031415117,1.6929,2639.1,2639.0,5.24356106]
[1749031415321,0.208,2639.1,2639.0,2.77461611]
[1749031416401,0.208,2639.1,2639.0,10.77461611]
[1749031416915,0.208,2639.1,2639.0,8.0]
[1749031417316,0.208,2639.1,2639.0,13.24566264]
[1749031420511,1.188,2639.1,2639.0,13.24566264]
[1749031424059,1.18277243,2639.1,2639.0,13.24566264]
[1749031427512,1.18277243,2639.1,2639.0,4.2241686]
[1749031427724,0.98,2639.1,2639.0,4.2241686]
[1749031427998,1.188,2639.1,2639.0,4.2241686]
[1749031430648,1.188,2639.1,2638.9,5.24566264]
[1749031433670,1.188,2639.1,2638.6,1.1929159]
[1749031433853,1.188,2639.1,2638.9,5.24566264]
[1749031435168,0.98,2639.1,2639.0,22.566289]
[1749031435371,0.98,2640.0,2639.0,24.15199645]
[1749031435578,0.208,2639.9,2639.8,5.24566264]
[1749031435929,0.208,2639.9,2639.8,13.24566264]
[1749031439269,0.208,2639.9,2639.8,10.77290218]
[1749031441797,0.208,2639.9,2639.8,23.74537236]
[1749031441950,1.6044,2640.9,2639.9,38.0]
[1749031442279,0.208,2640.8,2640.6,2.77290218]
[1749031444654,0.208,2640.8,2640.7,2.77290218]
[1749031445187,0.208,2640.8,2640.5,5.24065335]
[1749031446753,0.208,2640.8,2640.3,10.0]
[1749031447365,0.208,2640.8,2640.1,5.24065335]
[1749031447564,0.208,2640.8,2640.3,10.0]
[1749031447896,0.208,2640.8,2640.2,10.818443]
[1749031448201,0.208,2640.8,2640.2,8.400016]
[1749031450087,1.6044,2640.9,2640.2,8.400016]
[1749031450400,0.208,2640.8,2640.5,14.210921]
[1749031451377,0.208,2640.8,2640.5,12.431878]
[1749031451576,0.208,2640.8,2640.5,10.029513]
[1749031452095,0.208,2640.8,2640.6,10.0]
[1749031452298,0.208,2640.8,2640.3,10.0]
[1749031452502,0.208,2640.8,2640.3,13.5681]
[1749031453799,0.208,2640.8,2640.4,8.0]
[1749031454101,0.208,2640.8,2640.3,11.549851]
[1749031454102,0.208,2640.8,2640.2,8.0156]
[1749031454272,0.208,2640.8,2640.4,8.0]
[1749031455863,0.208,2640.8,2640.2,8.0156]
[1749031456162,0.208,2640.8,2640.4,8.0]
[1749031456366,0.208,2640.8,2640.2,8.0156]
[1749031456600,0.208,2640.8,2640.2,8.0]
[1749031456776,0.208,2640.8,2640.4,8.0]
[1749031457301,0.208,2640.8,2640.2,13.395285]
[1749031457506,0.208,2640.8,2640.1,5.24065335]
[1749031457507,1.5626,2640.7,2639.7,0.0156]
[1749031457810,1.5626,2640.7,2639.7,8.0]
[1749031457970,1.5626,2640.7,2639.7,15.925041]
[1749031458309,1.5626,2640.7,2639.3,5.25625335]
[1749031458476,1.5626,2640.7,2639.4,8.0]
[1749031458804,1.611,2640.5,2639.4,8.0]
[1749031459106,1.611,2640.3,2639.4,8.0]
[1749031459427,1.611,2640.3,2639.3,5.24065335]
[1749031459625,1.611,2640.3,2639.4,8.0]
[1749031460885,1.611,2640.3,2639.6,8.0]
[1749031464850,1.5742,2640.1,2639.6,8.0]
[1749031465051,2.07622499,2640.1,2639.6,8.0]
[1749031465561,6.321,2640.0,2639.1,1.20066475]
[1749031465866,6.321,2640.0,2639.2,8.0]
[1749031465867,1.651,2639.9,2639.2,8.0]
[1749031467566,1.651,2639.9,2639.0,8.0]
[1749031467872,1.5289,2639.8,2639.3,2.77354477]
[1749031468016,2.14879,2639.8,2639.3,2.77354477]
[1749031470459,1.5289,2639.8,2639.3,2.77354477]
[1749031472555,1.5289,2639.8,2638.8,1.20066475]
[1749031472756,1.5289,2639.8,2639.3,8.0]
[1749031473888,0.208,2639.7,2639.3,8.0]
[1749031478010,1.6448,2639.6,2639.3,8.0]
[1749031480598,1.6448,2639.6,2639.2,1.12523903]
[1749031481274,1.6448,2639.6,2638.8,1.20066475]
[1749031481275,1.6448,2639.6,2639.4,2.77354477]
[1749031481476,1.6251,2639.8,2639.4,2.77354477]
[1749031481680,0.208,2639.7,2639.6,2.77354477]
[1749031482196,0.208,2639.7,2639.5,2.77354477]
[1749031482498,0.208,2639.7,2639.3,2.77354477]
[1749031483396,0.208,2639.7,2639.1,2.77354477]
[1749031483601,1.5728,2639.6,2639.1,2.77354477]
[1749031483795,1.5728,2639.6,2639.0,2.77354477]
[1749031486104,1.5728,2639.6,2638.9,1.20066475]
[1749031486105,1.5728,2639.6,2639.2,2.77354477]
[1749031491884,1.5728,2639.6,2639.2,8.0]
[1749031492110,1.5728,2639.6,2639.1,8.0]
[1749031492313,1.5728,2639.6,2639.1,9.20066475]
[1749031493722,1.5728,2639.6,2639.2,2.77354477]
[1749031494021,1.5728,2639.6,2639.3,8.0]
[1749031494396,0.98,2639.5,2639.2,8.0]
[1749031495815,0.98,2639.5,2639.3,2.77354477]
[1749031496192,0.98,2639.5,2639.4,8.0]
[1749031496524,1.188,2639.5,2639.4,8.0]
[1749031497518,0.98,2639.5,2639.4,8.0]
[1749031497723,1.188,2639.5,2639.4,8.0]
[1749031498136,0.98,2639.5,2639.4,8.0]
[1749031498490,1.188,2639.5,2639.4,38.0]
[1749031499333,1.188,2639.5,2639.4,30.654604]
[1749031499495,1.188,2639.5,2639.4,28.755604]
[1749031499695,1.188,2639.5,2639.4,25.456604]
[1749031499924,1.188,2639.5,2639.4,8.316067]
[1749031500195,1.188,2639.5,2639.4,8.044567]
[1749031501020,1.188,2639.5,2639.4,7.561567]
[1749031502416,1.188,2639.5,2638.9,2.77354477]
[1749031502417,0.55,2639.2,2638.4,6.9982519]
[1749031502618,2.09076,2639.1,2638.4,8.57113192]
[1749031502801,0.208,2639.0,2638.6,18.0]
[1749031503002,0.208,2639.0,2638.9,2.77354477]
[1749031503867,0.208,2639.0,2638.8,8.0]
[1749031504051,0.208,2639.0,2638.5,10.77354477]
[1749031504581,0.208,2639.0,2638.5,2.77354477]